[Event "*** Titled Tuesday Blitz"]
[Site "Chess.com"]
[Date "2021.04.20"]
[Round "9"]
[White "not_najdorfs_player"]
[Black "VladaSviridova"]
[Result "0-1"]
[WhiteElo "2352"]
[BlackElo "2275"]
[TimeControl "180+1"]
[EndTime "11:46:22 PDT"]
[Termination "VladaSviridova won by resignation"]

1. e4 {[%clk 0:02:51.8]} 1... e6 {[%clk 0:03:00.1]} 2. d4 {[%clk 0:02:51]} 2...
d5 {[%clk 0:03:00.3]} 3. Nd2 {[%clk 0:02:50.9]} 3... c5 {[%clk 0:03:00]} 4. exd5
{[%clk 0:02:46.6]} 4... Qxd5 {[%clk 0:02:59.6]} 5. Ngf3 {[%clk 0:02:45.3]} 5...
cxd4 {[%clk 0:02:58.9]} 6. Bc4 {[%clk 0:02:41]} 6... Qd7 {[%clk 0:02:59]} 7. O-O
{[%clk 0:02:34.7]} 7... Nc6 {[%clk 0:02:58.9]} 8. Nb3 {[%clk 0:02:33.7]} 8... a6
{[%clk 0:02:59.2]} 9. a4 {[%clk 0:02:31.9]} 9... Nf6 {[%clk 0:02:45.7]} 10.
Nbxd4 {[%clk 0:02:28]} 10... Nxd4 {[%clk 0:02:45.5]} 11. Nxd4 {[%clk 0:02:19.3]}
11... Qc7 {[%clk 0:02:44.6]} 12. Qe2 {[%clk 0:02:10.3]} 12... Bd6 {[%clk
0:02:42.8]} 13. h3 {[%clk 0:02:06.7]} 13... O-O {[%clk 0:02:40.4]} 14. c3 {[%clk
0:02:02]} 14... Bd7 {[%clk 0:02:39.3]} 15. Rd1 {[%clk 0:01:55.7]} 15... e5
{[%clk 0:02:25.4]} 16. Nf3 {[%clk 0:01:52.9]} 16... e4 {[%clk 0:02:25.1]} 17.
Nd4 {[%clk 0:01:15.9]} 17... Rac8 {[%clk 0:02:17]} 18. Bb3 {[%clk 0:01:11.1]}
18... Rfe8 {[%clk 0:02:01.8]} 19. Bg5 {[%clk 0:01:06.8]} 19... Be5 {[%clk
0:01:52.1]} 20. Nc2 {[%clk 0:00:59]} 20... h6 {[%clk 0:01:45.9]} 21. Be3 {[%clk
0:00:56.3]} 21... Bf5 {[%clk 0:01:31.5]} 22. Nd4 {[%clk 0:00:54.1]} 22... Bg6
{[%clk 0:01:29.3]} 23. Rac1 {[%clk 0:00:50]} 23... Bh5 {[%clk 0:01:25.6]} 24. g4
{[%clk 0:00:48.6]} 24... Bg6 {[%clk 0:01:19.4]} 25. Kh1 {[%clk 0:00:48.3]} 25...
h5 {[%clk 0:01:06.4]} 26. Nf5 {[%clk 0:00:29.7]} 26... hxg4 {[%clk 0:00:47.2]}
27. hxg4 {[%clk 0:00:29.7]} 27... Bf4 {[%clk 0:00:41.2]} 28. Kg2 {[%clk
0:00:23.3]} 28... Bxf5 {[%clk 0:00:32.6]} 29. gxf5 {[%clk 0:00:22.6]} 29... Qe5
{[%clk 0:00:32.6]} 30. Bd4 {[%clk 0:00:13.5]} 30... Qxf5 {[%clk 0:00:32.3]} 31.
Rc2 {[%clk 0:00:13.7]} 31... Nh5 {[%clk 0:00:27.5]} 32. Rh1 {[%clk 0:00:12.7]}
32... g6 {[%clk 0:00:21.5]} 33. Kf1 {[%clk 0:00:10.3]} 33... Be5 {[%clk
0:00:17.3]} 34. Be3 {[%clk 0:00:10.1]} 34... Nf4 {[%clk 0:00:16]} 35. Bxf4
{[%clk 0:00:10]} 35... Bxf4 {[%clk 0:00:16.1]} 36. Rg1 {[%clk 0:00:09.5]} 36...
e3 {[%clk 0:00:15.5]} 37. f3 {[%clk 0:00:09.2]} 37... Red8 {[%clk 0:00:14.7]}
38. Rc1 {[%clk 0:00:09.3]} 38... Rd2 {[%clk 0:00:14.5]} 39. Bc2 {[%clk
0:00:08.6]} 39... Rxe2 {[%clk 0:00:14.1]} 40. Bxf5 {[%clk 0:00:07.8]} 40... Rf2+
{[%clk 0:00:14.1]} 41. Ke1 {[%clk 0:00:08.7]} 41... Rd8 {[%clk 0:00:12]} 42. Be4
{[%clk 0:00:09.2]} 42... f5 {[%clk 0:00:11.2]} 43. Bxb7 {[%clk 0:00:09]} 43...
Kg7 {[%clk 0:00:10.7]} 44. Bxa6 {[%clk 0:00:09.4]} 44... Rdd2 {[%clk 0:00:10.6]}
45. Rf1 {[%clk 0:00:09.8]} 45... Rxb2 {[%clk 0:00:10.2]} 46. Rxf2 {[%clk
0:00:10]} 46... exf2+ {[%clk 0:00:10.5]} 47. Kf1 {[%clk 0:00:10.4]} 47... Bxc1
{[%clk 0:00:11.1]} 48. Be2 {[%clk 0:00:09.6]} 48... Be3 {[%clk 0:00:11.1]} 49.
a5 {[%clk 0:00:10.1]} 49... Rb1+ {[%clk 0:00:11.2]} 50. Kg2 {[%clk 0:00:10.5]}
50... Rg1+ {[%clk 0:00:11.3]} 51. Kh2 {[%clk 0:00:11]} 51... f1=Q {[%clk
0:00:11.2]} 52. Bxf1 {[%clk 0:00:11.5]} 52... Rxf1 {[%clk 0:00:11.6]} 53. Kg2
{[%clk 0:00:12.4]} 53... Rg1+ {[%clk 0:00:11.4]} 54. Kh3 {[%clk 0:00:12.3]}
54... g5 {[%clk 0:00:11.5]} 55. a6 {[%clk 0:00:12.9]} 55... Rh1+ {[%clk
0:00:11.3]} 56. Kg2 {[%clk 0:00:13.1]} 56... Ra1 {[%clk 0:00:11.7]} 57. a7
{[%clk 0:00:13.1]} 57... Rxa7 {[%clk 0:00:11.8]} 58. f4 {[%clk 0:00:14]} 58...
g4 {[%clk 0:00:11.5]} 59. Kg3 {[%clk 0:00:13.7]} 59... Ra2 {[%clk 0:00:11.2]}
60. c4 {[%clk 0:00:14.2]} 60... Rc2 {[%clk 0:00:09.8]} 61. c5 {[%clk 0:00:15.1]}
61... Bf2+ {[%clk 0:00:10.1]} 62. Kg2 {[%clk 0:00:14.8]} 62... Bxc5+ {[%clk
0:00:10.3]} 63. Kg3 {[%clk 0:00:15.1]} 63... Rc4 {[%clk 0:00:10.3]} 64. Kh4
{[%clk 0:00:14.6]} 64... Bd6 {[%clk 0:00:09.8]} 65. Kg5 {[%clk 0:00:14.3]} 65...
Bxf4+ {[%clk 0:00:09.7]} 66. Kh5 {[%clk 0:00:14.9]} 66... Bh2 {[%clk 0:00:09.1]}
67. Kh4 {[%clk 0:00:15.1]} 67... g3+ {[%clk 0:00:09.1]} 68. Kh3 {[%clk
0:00:15.6]} 68... Rc1 {[%clk 0:00:08.5]} 69. Kg2 {[%clk 0:00:15.8]} 69... Kf6
{[%clk 0:00:08.6]} 70. Kh3 {[%clk 0:00:16.3]} 70... Ke5 {[%clk 0:00:08.8]} 71.
Kg2 {[%clk 0:00:17.1]} 71... f4 {[%clk 0:00:09.1]} 72. Kh3 {[%clk 0:00:18]}
72... f3 {[%clk 0:00:09.5]} 73. Kg4 {[%clk 0:00:18.3]} 73... Ke4 {[%clk
0:00:09.2]} 74. Kh3 {[%clk 0:00:18.6]} 74... Kf4 {[%clk 0:00:09.2]} 75. Kh4
{[%clk 0:00:18.5]} 75... Rc5 {[%clk 0:00:08.5]} 0-1

[Event "*** Titled Tuesday Blitz"]
[Site "Chess.com"]
[Date "2021.04.20"]
[Round "9"]
[White "Volodar_Murzin"]
[Black "ukchessbomber"]
[Result "1-0"]
[WhiteElo "2726"]
[BlackElo "2538"]
[TimeControl "180+1"]
[EndTime "11:46:23 PDT"]
[Termination "Volodar_Murzin won by resignation"]

1. e4 {[%clk 0:03:00.9]} 1... e5 {[%clk 0:02:57.2]} 2. Nf3 {[%clk 0:02:59.5]}
2... Nc6 {[%clk 0:02:57.8]} 3. Bb5 {[%clk 0:02:57.7]} 3... a6 {[%clk 0:02:57.7]}
4. Ba4 {[%clk 0:02:57.4]} 4... Nf6 {[%clk 0:02:57.5]} 5. O-O {[%clk 0:02:56.7]}
5... b5 {[%clk 0:02:57.9]} 6. Bb3 {[%clk 0:02:55.6]} 6... Bc5 {[%clk 0:02:58.5]}
7. c3 {[%clk 0:02:48.3]} 7... d6 {[%clk 0:02:57.2]} 8. d4 {[%clk 0:02:48.6]}
8... Bb6 {[%clk 0:02:57.5]} 9. Be3 {[%clk 0:02:43.4]} 9... O-O {[%clk
0:02:53.5]} 10. Nbd2 {[%clk 0:02:39.6]} 10... Re8 {[%clk 0:02:44.4]} 11. h3
{[%clk 0:01:46.7]} 11... Bb7 {[%clk 0:02:36]} 12. Re1 {[%clk 0:01:39.5]} 12...
Na5 {[%clk 0:02:33.3]} 13. Bc2 {[%clk 0:01:13]} 13... c5 {[%clk 0:01:41.4]} 14.
dxe5 {[%clk 0:01:03.3]} 14... dxe5 {[%clk 0:01:42.3]} 15. Qe2 {[%clk 0:01:03]}
15... Nc6 {[%clk 0:01:17.9]} 16. Red1 {[%clk 0:00:57.7]} 16... Qc7 {[%clk
0:01:02.3]} 17. Nf1 {[%clk 0:00:49.7]} 17... Ne7 {[%clk 0:01:00.9]} 18. Bg5
{[%clk 0:00:45.4]} 18... Ng6 {[%clk 0:00:52.7]} 19. Bxf6 {[%clk 0:00:39.8]}
19... gxf6 {[%clk 0:00:53.6]} 20. g3 {[%clk 0:00:25.9]} 20... Kh8 {[%clk
0:00:43.9]} 21. Ne3 {[%clk 0:00:22.1]} 21... Rad8 {[%clk 0:00:38]} 22. c4 {[%clk
0:00:15.6]} 22... bxc4 {[%clk 0:00:30.6]} 23. Ba4 {[%clk 0:00:14.5]} 23... Bc6
{[%clk 0:00:29.8]} 24. Bxc6 {[%clk 0:00:14.2]} 24... Qxc6 {[%clk 0:00:30.7]} 25.
Qxc4 {[%clk 0:00:12.9]} 25... Qe6 {[%clk 0:00:23.4]} 26. Qxa6 {[%clk 0:00:12.3]}
26... Ra8 {[%clk 0:00:23.8]} 27. Qb5 {[%clk 0:00:11.7]} 27... Rab8 {[%clk
0:00:24.3]} 28. Qd7 {[%clk 0:00:11.9]} 28... Nf8 {[%clk 0:00:17.5]} 29. Qxe6
{[%clk 0:00:10.2]} 29... Nxe6 {[%clk 0:00:18.4]} 30. Nc4 {[%clk 0:00:10.4]}
30... Re7 {[%clk 0:00:15.1]} 31. Rd6 {[%clk 0:00:09.7]} 31... Bc7 {[%clk
0:00:13.1]} 32. Rd5 {[%clk 0:00:03.2]} 32... Rb4 {[%clk 0:00:11.4]} 33. b3
{[%clk 0:00:03.3]} 33... Rb8 {[%clk 0:00:12]} 34. Rad1 {[%clk 0:00:03.2]} 34...
Kg8 {[%clk 0:00:08.8]} 35. Rd7 {[%clk 0:00:03.2]} 35... Kf8 {[%clk 0:00:09.4]}
36. Rxe7 {[%clk 0:00:03.6]} 36... Kxe7 {[%clk 0:00:10.3]} 37. Nh4 {[%clk
0:00:04.4]} 37... Ra8 {[%clk 0:00:10.1]} 38. Nf5+ {[%clk 0:00:05.3]} 38... Ke8
{[%clk 0:00:10.1]} 39. Rd2 {[%clk 0:00:06.2]} 39... Nd4 {[%clk 0:00:09.8]} 40.
Nxd4 {[%clk 0:00:06.1]} 40... cxd4 {[%clk 0:00:10.7]} 41. Kf1 {[%clk 0:00:06.6]}
41... Kd7 {[%clk 0:00:11]} 42. Ke2 {[%clk 0:00:06.9]} 42... Kc6 {[%clk
0:00:11.6]} 43. Kd3 {[%clk 0:00:07.1]} 43... Kc5 {[%clk 0:00:12.2]} 44. Rc2
{[%clk 0:00:07.6]} 44... Kb5 {[%clk 0:00:07.1]} 45. Nd2 {[%clk 0:00:05.9]} 45...
Bd6 {[%clk 0:00:06.2]} 46. Nc4 {[%clk 0:00:06]} 46... Be7 {[%clk 0:00:06.8]} 47.
f4 {[%clk 0:00:05.9]} 47... Rg8 {[%clk 0:00:03.8]} 48. g4 {[%clk 0:00:05.2]}
48... exf4 {[%clk 0:00:03.8]} 49. Rf2 {[%clk 0:00:05.5]} 49... h5 {[%clk
0:00:04.7]} 50. Rxf4 {[%clk 0:00:05.7]} 50... hxg4 {[%clk 0:00:04.5]} 51. hxg4
{[%clk 0:00:06.5]} 51... Bc5 {[%clk 0:00:02.8]} 52. Rf5 {[%clk 0:00:05.6]} 52...
Rh8 {[%clk 0:00:02.3]} 53. Rxf6 {[%clk 0:00:03]} 53... Rh3+ {[%clk 0:00:02.2]}
54. Ke2 {[%clk 0:00:03.3]} 54... Rh2+ {[%clk 0:00:02.7]} 55. Kf1 {[%clk
0:00:02.4]} 55... Rxa2 {[%clk 0:00:03.6]} 56. Rf5 {[%clk 0:00:02.5]} 56... d3
{[%clk 0:00:03.1]} 57. Ne5 {[%clk 0:00:02.7]} 57... d2 {[%clk 0:00:02.5]} 58.
Ke2 {[%clk 0:00:03]} 58... Bg1 {[%clk 0:00:01.5]} 59. Nf3+ {[%clk 0:00:02.8]}
59... Kb4 {[%clk 0:00:02.4]} 60. Nxg1 {[%clk 0:00:03]} 60... Kxb3 {[%clk
0:00:03.3]} 61. Nf3 {[%clk 0:00:02.9]} 61... Kc3 {[%clk 0:00:02.3]} 62. Rc5+
{[%clk 0:00:03.1]} 62... Kb4 {[%clk 0:00:02.7]} 63. Rd5 {[%clk 0:00:04]} 63...
Kc4 {[%clk 0:00:02.2]} 64. Nxd2+ {[%clk 0:00:04.1]} 64... Kc3 {[%clk 0:00:02.4]}
65. Ke3 {[%clk 0:00:04.8]} 65... Ra1 {[%clk 0:00:02.2]} 66. Nf3 {[%clk
0:00:05.5]} 66... Kc2 {[%clk 0:00:03.1]} 67. Kf4 {[%clk 0:00:06.2]} 67... Rf1
{[%clk 0:00:04]} 68. Rd2+ {[%clk 0:00:05.8]} 68... Kc1 {[%clk 0:00:04.5]} 69.
Rd7 {[%clk 0:00:06.7]} 69... Kc2 {[%clk 0:00:05]} 70. Rxf7 {[%clk 0:00:07]} 1-0

[Event "*** Titled Tuesday Blitz"]
[Site "Chess.com"]
[Date "2021.04.20"]
[Round "9"]
[White "Iskusnyh"]
[Black "lamomiablanca"]
[Result "1-0"]
[WhiteElo "2606"]
[BlackElo "2396"]
[TimeControl "180+1"]
[EndTime "11:46:29 PDT"]
[Termination "Iskusnyh won on time"]

1. d4 {[%clk 0:03:00.9]} 1... d5 {[%clk 0:02:59.5]} 2. c4 {[%clk 0:03:00.6]}
2... c6 {[%clk 0:02:59.6]} 3. Nf3 {[%clk 0:03:00]} 3... Nf6 {[%clk 0:02:59.6]}
4. e3 {[%clk 0:02:58.6]} 4... g6 {[%clk 0:02:59.5]} 5. Nc3 {[%clk 0:02:54.8]}
5... Bg7 {[%clk 0:02:59.3]} 6. Be2 {[%clk 0:02:54.1]} 6... O-O {[%clk
0:02:59.1]} 7. O-O {[%clk 0:02:54.5]} 7... Bg4 {[%clk 0:02:52.7]} 8. b3 {[%clk
0:02:50]} 8... Bxf3 {[%clk 0:02:52.1]} 9. Bxf3 {[%clk 0:02:50]} 9... e6 {[%clk
0:02:52.3]} 10. Bb2 {[%clk 0:02:50]} 10... Nbd7 {[%clk 0:02:51.2]} 11. Re1
{[%clk 0:02:45.2]} 11... Re8 {[%clk 0:02:50.5]} 12. g3 {[%clk 0:02:39]} 12...
Rc8 {[%clk 0:02:26.7]} 13. Bg2 {[%clk 0:02:34.1]} 13... Qc7 {[%clk 0:02:08.9]}
14. Rc1 {[%clk 0:02:29]} 14... Qd6 {[%clk 0:01:58]} 15. c5 {[%clk 0:02:18.7]}
15... Qc7 {[%clk 0:01:54.7]} 16. f4 {[%clk 0:02:19.2]} 16... h5 {[%clk
0:01:45.1]} 17. b4 {[%clk 0:02:14.3]} 17... a6 {[%clk 0:01:30.7]} 18. a4 {[%clk
0:02:13.2]} 18... b5 {[%clk 0:01:22.8]} 19. axb5 {[%clk 0:02:06.4]} 19... axb5
{[%clk 0:01:22.3]} 20. Ra1 {[%clk 0:02:06.2]} 20... Ra8 {[%clk 0:01:22.2]} 21.
Qc2 {[%clk 0:02:01.6]} 21... Qb7 {[%clk 0:01:19.7]} 22. h3 {[%clk 0:01:56.6]}
22... Red8 {[%clk 0:01:06.9]} 23. Rxa8 {[%clk 0:01:35]} 23... Rxa8 {[%clk
0:01:06.5]} 24. Ra1 {[%clk 0:01:35.4]} 24... Rxa1+ {[%clk 0:00:57.1]} 25. Bxa1
{[%clk 0:01:33.8]} 25... Qa6 {[%clk 0:00:56.2]} 26. Bb2 {[%clk 0:01:29.4]} 26...
Qa7 {[%clk 0:00:37.4]} 27. Bf3 {[%clk 0:01:23.7]} 27... Qa6 {[%clk 0:00:36.2]}
28. Kg2 {[%clk 0:01:21.5]} 28... Qa7 {[%clk 0:00:36]} 29. g4 {[%clk 0:01:21.2]}
29... hxg4 {[%clk 0:00:33.7]} 30. hxg4 {[%clk 0:01:21.1]} 30... Qa6 {[%clk
0:00:33.9]} 31. Qb1 {[%clk 0:01:13.3]} 31... Ne8 {[%clk 0:00:29.4]} 32. Be2
{[%clk 0:01:08.4]} 32... Nc7 {[%clk 0:00:26.3]} 33. Bd3 {[%clk 0:01:07.5]} 33...
Nf6 {[%clk 0:00:20.9]} 34. Kf3 {[%clk 0:01:01.5]} 34... Qa7 {[%clk 0:00:20.1]}
35. Bc2 {[%clk 0:00:54]} 35... Qa6 {[%clk 0:00:19.9]} 36. Ne2 {[%clk 0:00:53.8]}
36... Qa7 {[%clk 0:00:19.8]} 37. Ng3 {[%clk 0:00:53.1]} 37... Qa8 {[%clk
0:00:19.6]} 38. f5 {[%clk 0:00:51.7]} 38... exf5 {[%clk 0:00:18.3]} 39. gxf5
{[%clk 0:00:51.4]} 39... g5 {[%clk 0:00:18.6]} 40. Qa1 {[%clk 0:00:37.5]} 40...
Qxa1 {[%clk 0:00:16.2]} 41. Bxa1 {[%clk 0:00:37.3]} 41... g4+ {[%clk 0:00:14.5]}
42. Kf2 {[%clk 0:00:31.2]} 42... Bh6 {[%clk 0:00:14.5]} 43. Bc3 {[%clk 0:00:29]}
43... Bg5 {[%clk 0:00:14.5]} 44. Bd2 {[%clk 0:00:24.7]} 44... Bh4 {[%clk
0:00:13.8]} 45. Kg2 {[%clk 0:00:24.9]} 45... Bg5 {[%clk 0:00:13.1]} 46. Bd1
{[%clk 0:00:20.9]} 46... Kg7 {[%clk 0:00:12.5]} 47. Bc1 {[%clk 0:00:20.5]} 47...
Na6 {[%clk 0:00:12.1]} 48. Bd2 {[%clk 0:00:19.9]} 48... Nc7 {[%clk 0:00:11.4]}
49. Bc2 {[%clk 0:00:19.6]} 49... Na6 {[%clk 0:00:10.6]} 50. Bd3 {[%clk
0:00:19.5]} 50... Nc7 {[%clk 0:00:10.6]} 51. Ne2 {[%clk 0:00:17.4]} 51... Kh6
{[%clk 0:00:09.9]} 52. Kg3 {[%clk 0:00:17.5]} 52... Kh5 {[%clk 0:00:09.9]} 53.
Nf4+ {[%clk 0:00:17.4]} 53... Bxf4+ {[%clk 0:00:09.8]} 54. Kxf4 {[%clk
0:00:17.5]} 54... Kh4 {[%clk 0:00:08.7]} 55. Be1+ {[%clk 0:00:17.7]} 55... Kh3
{[%clk 0:00:08.9]} 56. Bf1+ {[%clk 0:00:18]} 56... Kh2 {[%clk 0:00:08.4]} 57.
Kg5 {[%clk 0:00:18.4]} 57... Nce8 {[%clk 0:00:07.7]} 58. Kf4 {[%clk 0:00:13.3]}
58... Kg1 {[%clk 0:00:07.4]} 59. Be2 {[%clk 0:00:12.7]} 59... Ne4 {[%clk
0:00:05.7]} 60. Bxg4 {[%clk 0:00:11.9]} 60... Kf1 {[%clk 0:00:05.8]} 61. Bh4
{[%clk 0:00:11.8]} 61... f6 {[%clk 0:00:03.3]} 62. Bh5 {[%clk 0:00:11.7]} 62...
Ng7 {[%clk 0:00:03.4]} 63. Bf7 {[%clk 0:00:12]} 63... Ke2 {[%clk 0:00:02.1]} 64.
Bg8 {[%clk 0:00:09.8]} 64... Kd3 {[%clk 0:00:01.8]} 65. Be1 {[%clk 0:00:06.1]}
65... Kc4 {[%clk 0:00:02.4]} 66. Bf7 {[%clk 0:00:05.4]} 66... Kb3 {[%clk
0:00:01.5]} 67. Be6 {[%clk 0:00:05.5]} 67... Kc4 {[%clk 0:00:02.4]} 68. Bd7
{[%clk 0:00:05.8]} 1-0

[Event "*** Titled Tuesday Blitz"]
[Site "Chess.com"]
[Date "2021.04.20"]
[Round "9"]
[White "OlegKrivonosov"]
[Black "Vanina1989"]
[Result "1/2-1/2"]
[WhiteElo "2643"]
[BlackElo "2788"]
[TimeControl "180+1"]
[EndTime "11:46:31 PDT"]
[Termination "Game drawn by repetition"]

1. Nf3 {[%clk 0:03:00.9]} 1... d5 {[%clk 0:02:59.7]} 2. d4 {[%clk 0:02:59.7]}
2... Nf6 {[%clk 0:02:59.2]} 3. c4 {[%clk 0:03:00.1]} 3... c6 {[%clk 0:02:59.5]}
4. cxd5 {[%clk 0:03:00]} 4... cxd5 {[%clk 0:02:59.7]} 5. Nc3 {[%clk 0:03:00.4]}
5... Nc6 {[%clk 0:03:00.1]} 6. Bf4 {[%clk 0:03:00.6]} 6... a6 {[%clk 0:03:00.4]}
7. Rc1 {[%clk 0:02:59.4]} 7... Bf5 {[%clk 0:02:58.1]} 8. e3 {[%clk 0:02:58.7]}
8... e6 {[%clk 0:02:53.4]} 9. Qb3 {[%clk 0:02:57.3]} 9... Ra7 {[%clk 0:02:53.2]}
10. Be2 {[%clk 0:02:55.9]} 10... Be7 {[%clk 0:02:52.8]} 11. Ne5 {[%clk
0:02:56.2]} 11... O-O {[%clk 0:02:52.5]} 12. O-O {[%clk 0:02:54.8]} 12... Nxe5
{[%clk 0:02:52.6]} 13. Bxe5 {[%clk 0:02:53.6]} 13... Nd7 {[%clk 0:02:52.5]} 14.
Bg3 {[%clk 0:02:53.1]} 14... b5 {[%clk 0:02:51.9]} 15. a4 {[%clk 0:02:52.9]}
15... b4 {[%clk 0:02:51.4]} 16. Nb1 {[%clk 0:02:52.5]} 16... Qb6 {[%clk
0:02:45.2]} 17. Nd2 {[%clk 0:02:45.2]} 17... Nb8 {[%clk 0:02:39.3]} 18. Bd3
{[%clk 0:02:44]} 18... Bxd3 {[%clk 0:02:31]} 19. Qxd3 {[%clk 0:02:44.2]} 19...
Nc6 {[%clk 0:02:25.8]} 20. Nb3 {[%clk 0:02:42.7]} 20... g6 {[%clk 0:02:21.2]}
21. Rc2 {[%clk 0:02:41.3]} 21... Rc8 {[%clk 0:02:02.8]} 22. Rfc1 {[%clk
0:02:39.3]} 22... Raa8 {[%clk 0:02:03.2]} 23. h3 {[%clk 0:02:31.5]} 23... Qb7
{[%clk 0:02:03.2]} 24. Nc5 {[%clk 0:02:24.4]} 24... Bxc5 {[%clk 0:02:02.5]} 25.
Rxc5 {[%clk 0:02:24.8]} 25... Ne7 {[%clk 0:02:02.7]} 26. b3 {[%clk 0:02:17.5]}
26... Rxc5 {[%clk 0:01:57.9]} 27. Rxc5 {[%clk 0:02:17.7]} 27... Rc8 {[%clk
0:01:57.5]} 28. Qc2 {[%clk 0:02:15.9]} 28... Rc6 {[%clk 0:01:52.8]} 29. Kf1
{[%clk 0:01:56.4]} 29... Qb6 {[%clk 0:01:27]} 30. Rxc6 {[%clk 0:01:50.5]} 30...
Qxc6 {[%clk 0:01:23.6]} 31. Qxc6 {[%clk 0:01:48.8]} 31... Nxc6 {[%clk
0:01:23.5]} 32. Bd6 {[%clk 0:01:47.3]} 32... f6 {[%clk 0:01:23.5]} 33. Ke2
{[%clk 0:01:38.2]} 33... Kf7 {[%clk 0:01:21.6]} 34. Kd3 {[%clk 0:01:34.7]} 34...
e5 {[%clk 0:01:20.2]} 35. f3 {[%clk 0:01:30.1]} 35... Ke6 {[%clk 0:01:17.8]} 36.
Bc5 {[%clk 0:01:30.4]} 36... Kf5 {[%clk 0:01:17.8]} 37. e4+ {[%clk 0:01:14.4]}
37... Ke6 {[%clk 0:01:15.3]} 38. g4 {[%clk 0:01:06.8]} 38... exd4 {[%clk
0:01:07]} 39. Bxd4 {[%clk 0:01:00.6]} 39... dxe4+ {[%clk 0:01:03.6]} 40. Kxe4
{[%clk 0:00:52.6]} 40... f5+ {[%clk 0:01:03.3]} 41. gxf5+ {[%clk 0:00:50.1]}
41... gxf5+ {[%clk 0:01:03.4]} 42. Kd3 {[%clk 0:00:49.7]} 42... Kd5 {[%clk
0:01:03]} 43. Bb6 {[%clk 0:00:48.7]} 43... f4 {[%clk 0:00:51.9]} 44. Bf2 {[%clk
0:00:38.4]} 44... Ne5+ {[%clk 0:00:43.3]} 45. Ke2 {[%clk 0:00:37.5]} 45... Nf7
{[%clk 0:00:39.6]} 46. Be1 {[%clk 0:00:34.5]} 46... a5 {[%clk 0:00:38.7]} 47.
Bf2 {[%clk 0:00:33]} 47... Ng5 {[%clk 0:00:32.1]} 48. h4 {[%clk 0:00:27.4]}
48... Ne6 {[%clk 0:00:32]} 49. Kd3 {[%clk 0:00:27.2]} 49... Nd8 {[%clk
0:00:26.6]} 50. Bb6 {[%clk 0:00:21.9]} 50... Nb7 {[%clk 0:00:26.6]} 51. Bf2
{[%clk 0:00:16.9]} 51... h6 {[%clk 0:00:24.9]} 52. Bb6 {[%clk 0:00:15.6]} 52...
h5 {[%clk 0:00:23]} 53. Bf2 {[%clk 0:00:15.2]} 53... Nd8 {[%clk 0:00:23.2]} 54.
Bb6 {[%clk 0:00:12]} 54... Nc6 {[%clk 0:00:20.9]} 55. Bf2 {[%clk 0:00:11.3]}
55... Ne5+ {[%clk 0:00:20.5]} 56. Ke2 {[%clk 0:00:11.3]} 56... Ng6 {[%clk
0:00:20.7]} 57. Kd3 {[%clk 0:00:10.2]} 57... Ne7 {[%clk 0:00:20.3]} 58. Bb6
{[%clk 0:00:07.9]} 58... Nc6 {[%clk 0:00:19]} 59. Bf2 {[%clk 0:00:08.1]} 59...
Ne5+ {[%clk 0:00:17.4]} 60. Ke2 {[%clk 0:00:08]} 60... Nd7 {[%clk 0:00:17.8]}
61. Kd3 {[%clk 0:00:07.7]} 61... Nf8 {[%clk 0:00:15.6]} 62. Bb6 {[%clk
0:00:06.7]} 62... Ne6 {[%clk 0:00:14.3]} 63. Bf2 {[%clk 0:00:06.5]} 63... Ng7
{[%clk 0:00:10.5]} 64. Bb6 {[%clk 0:00:06]} 64... Nf5 {[%clk 0:00:10.9]} 65. Bf2
{[%clk 0:00:06.3]} 65... Ke5 {[%clk 0:00:06.2]} 66. Kc4 {[%clk 0:00:04.9]} 66...
Kd6 {[%clk 0:00:03.6]} 67. Kd3 {[%clk 0:00:04.7]} 67... Kd5 {[%clk 0:00:03.2]}
68. Ke2 {[%clk 0:00:03.6]} 68... Nd4+ {[%clk 0:00:02.7]} 69. Bxd4 {[%clk
0:00:03.4]} 69... Kxd4 {[%clk 0:00:03.2]} 70. Kd2 {[%clk 0:00:03.9]} 70... Ke5
{[%clk 0:00:03.7]} 71. Kd3 {[%clk 0:00:04]} 71... Kd5 {[%clk 0:00:04.2]} 72. Ke2
{[%clk 0:00:04.3]} 72... Kd4 {[%clk 0:00:04.1]} 73. Kd2 {[%clk 0:00:04.4]} 73...
Ke5 {[%clk 0:00:04.4]} 74. Kd3 {[%clk 0:00:04.4]} 74... Kd5 {[%clk 0:00:04.9]}
75. Ke2 {[%clk 0:00:04.5]} 75... Kd4 {[%clk 0:00:05.4]} 1/2-1/2